Workbook

Sheet Information
A1: Hvidovre Idrætsforening, Fodboldafdelingen | F1: Godtgørelse 2020 (Over 5.850 pr. år)
A3: Information 2020
A6: Ulønnede instruktører, trænere og ledere kan få skattefri omkostningsgodtgørelse for det arbejde, de udfører i deres forening. Skatterådet har justeret enkelte satser, for eksempel kørsel. De nye satser gælder pr. 1. 1. 2020.
D8: Godtgørelse pr. år. | F8: Godtgørelse pr. mdr.
A9: Telefonsamtaler og internetforbrug | D9: 2400 | F9: =D9/12 -> 200
A10: Administrative omkostninger | D10: 1450 | F10: =D10/12 -> 120.8333333
A11: Køb, vask og vedligeholdelse af tøj | D11: 2000 | F11: 166.6666667
A12: I alt | D12: =SUM(D6:D11) -> 5850 | E12: pr. år | F12: 487.5 | G12: pr. mdr.
A14: Din forening kan udbetale befordringsgodtgørelse til personer, der udfører frivilligt arbejde i foreningen. Skatterådet har fastsat nye satser, som gælder pr. 1. 1. 2020:
B16: Km | C16: Sats | D16: Godtgørelse i alt
A17: De første 20.000 km.: | B17: 20000 | C17: 3.52 | D17: =B17*C17 -> 70400 | E17: (2019: 3,56 kr.)
A18: Over 20.000 km.: | C18: 1.96 | E18: (2019: 1,98 kr.)
A20: Kost ved arrangementer: | C20: 80 | D20: pr. dag. Arrangementet skal vare minimum 5 timer.
A22: Læs mere om godtgørelse på HIF hjemmeside | F22: Her
A24: Afdelinger | B24: Afdelingsleder | E24: Hvem er omfattet
A25: Vælg Afdeling | B25: - | E25: -
A26: Sportslig Ansvarlig | B26: Jacob Kornerup | E26: Afdelingsledere
A27: Talentakademiet (U13A-19A + U23) | B27: Christian Grønbæk | E27: (U13A-19A + 2. senior)
A28: Børneakademiet (U3-U12 Drenge & Piger) | B28: Jack Nilaus | E28: (U3-U12)
A29: Ungdom/-senior (Herre & Damer U13-U19 + Senior og GM) | B29: Lotte Christiansen | E29: (U13-U19 + Senior og GM)
A31: Godkendelse
A32: Godtgørelsen skal være godkendt af din afdelingsleder | C32: JA
C33: NEJ

Sheet Samleark
A1: Hvidovre Idrætsforening, Fodboldafdelingen | F1: =Information!F1 -> Godtgørelse 2020 (Over 5.850 pr. år)
A3: Information
A6: Navn
A7: Adresse
A8: Cpr. nr.
A9: Køretøjets reg.nr.
A11: Afdeling | C11: Vælg Afdeling
A12: Afdelingsleder | C12: =VLOOKUP(C11,Information!A25:'Information'!C29,2,FALSE) -> -
A14: Afregningsperiode | C14: Måned
A15: Mdr. aftalt godtgørelse | C15: Hvilken mdr. godtgørelse er aftalt
A16: Reg. Nr. & Kontonummer til overførsel | C16: Reg. & Kontonummer
A19: Kørsel | D19: Godtgøresle
A20: Jf. KM regnskab | D20: ='KM regnskab'!H50 -> 563.2
A22: Andre udlæg
A23: Jf. anden godtgørelse | D23: ='Anden godtgørelse'!I22 -> 0
A25: Standard jf. aftale
A26: Antal mdr. godtgørelsen dækker | D26: 1 | E26: måneder
D28: Godtgøresle
A29: Telefonsamtaler og internetforbrug | D29: =Information!F9*D26 -> 200
A30: Administrative omkostninger | D30: =Information!F10*D26 -> 120.8333333
A31: Køb, vask og vedligeholdelse af tøj | D31: =Information!F11*D26 -> 166.6666667
A32: I alt | D32: =SUM(D26:D31) -> 488.5
A34: Godtgørelse i alt | D34: =D32+D23+D20 -> 1051.7
A36: Beløb der maksimalt godtgøres af klubben jf. aftale | D36: =C15 -> Hvilken mdr. godtgørelse er aftalt
A40: Udarbejdet af:
B41: Dato | E41: Navn (Underskrift hvis ikke elektronisk)
A42: Godkendt af:
B43: Dato | E43: Navn (Underskrift hvis ikke elektronisk)

Sheet KM regnskab
A1: Hvidovre Idrætsforening, Fodboldafdelingen | H1: =Information!F1 -> Godtgørelse 2020 (Over 5.850 pr. år)
A3: Kilometerregnskab
A6: Navn
A7: Adresse
A8: Cpr. nr.
A9: Køretøjets reg.nr.
A11: Afdeling | E11: Vælg Afdeling
A12: Afdelingsleder | E12: =VLOOKUP(E11,Information!A25:'Information'!C29,2,FALSE) -> -
A14: Afregningsperiode | E14: Måned
A15: Mdr. aftalt godtgørelse | E15: Hvilken mdr. godtgørelse er aftalt
A16: Reg. Nr. & Kontonummer til overførsel | E16: Reg. & Kontonummer
A19: Dato | B19: Kørt fra | C19: Kørt via | D19: Kørt til | E19: Km pr. gang | F19: Antal gange | G19: Km kørt i alt | H19: Beskrivelse / formål
B20: (adresse) | C20: (adresse) | D20: (adresse)
A21: Benyttes til antal gange til og fra træning pr. måned
A22: Januar | C22: Sollentuna Alle 1-3 2650 Hvidovre | D22: Byvej 72, 2650 Hvidovre | E22: 10 | F22: 15 | G22: =E22*F22 -> 150 | H22: Træning
A23: Februar | G23: =E23*F23 -> 0 | H23: Træning
A24: Marts | G24: 0 | H24: Træning
A25: April | G25: 0 | H25: Træning
A26: Maj | G26: 0 | H26: Træning
A27: Juni | G27: 0 | H27: Træning
A28: Benyttes til enkeltvise ture i f.m. kamp/scout/andet
A29: 2018-01-01 | B29: Byvej 38, 2650 Hvidovre | C29: Sollentuna Alle 1-3 2650 Hvidovre | D29: Byvej 72, 2650 Hvidovre | E29: 10 | F29: 1 | G29: =E29*F29 -> 10 | H29: Kamp/scout/andet
G30: 0
G31: 0
G32: 0
G33: 0
G34: 0
G35: 0
G36: 0
G37: 0
G38: 0
G39: 0
G40: 0
G41: 0
G42: 0
G43: 0
G44: 0
G45: 0
G46: 0
G47: =E47*F47 -> 0
A48: ➊ Km til befordringsgodtgørelse | G48: =SUM(G22:G47) -> 160
A50: ➊ Befordringsgodtgørelse | C50: km | E50: =G48 -> 160 | F50: á | G50: =Information!C17 -> 3.52 | H50: =G48*G50 -> 563.2
A53: Udarbejdet af: | E53: Dato | H53: Navn (Underskrift hvis ikke elektronisk)
A55: Godkendt af: | E55: Dato | H55: Navn (Underskrift hvis ikke elektronisk)

Sheet Anden godtgørelse
A1: Hvidovre Idrætsforening, Fodboldafdelingen | J1: =Information!F1 -> Godtgørelse 2020 (Over 5.850 pr. år)
A3: Anden godtgørelse
A6: Navn
A7: Adresse
A8: Cpr. nr.
A9: Køretøjets reg.nr.
A11: Afdeling | F11: Vælg Afdeling
A12: Afdelingsleder | F12: =VLOOKUP(F11,Information!A25:'Information'!C29,2,FALSE) -> -
A14: Afregningsperiode | F14: Måned
A15: Mdr. aftalt godtgørelse | F15: Hvilken mdr. godtgørelse er aftalt
A16: Reg. Nr. & Kontonummer til overførsel | F16: Reg. & Kontonummer
A19: Dato | B19: Kørt fra | C19: Bestemmelsessted | D19: ➊ Kørte km (frem og tilbage) | E19: ➋ Udenbys kampe mv. (endagsture min. 5 timer) | F19: ➌ Rejse med overnatning (mindst 24 t. varighed) i kr. | I19: ➍ Udlæg for klubben i flg. bilag kr. | J19: Bemærkninger: formål mv.
E20: Kost pr. dag (max. Kr. 80) | F20: Logi/natophold (maks kr. 223) | G20: Fortæring/diæter (maks kr. 521 pr. overnatning) | H20: Småfornødenheder
B21: (Adresse) | C21: (adresse) | D21: Km. | E21: antal gange | F21: Kr. | G21: Kr. | H21: Kr. | I21: Kr.
A42: I alt for perioden: | D42: =SUM(D22:D41) -> 0 | E42: =SUM(E22:E41) -> 0 | F42: 0 | G42: 0 | H42: 0 | I42: 0
A44: ➊ Befordringsgodtgørelse km | E44: =+D42 -> 0 | F44: km | G44: á | H44: =Information!C17 -> 3.52 | I44: = | J44: =+E44*H44 -> 0
A45: ➋ Merudgift til fortæring gange | E45: =+E42 -> 0 | F45: gange | G45: á | H45: =Information!C20 -> 80 | I45: = | J45: =+H45*E45 -> 0
A46: ➌ Rejsegodtgørelse | I46: = | J46: =+F42+G42+H42 -> 0
A47: ➍ Udlæg for klubben iflg. bilag | I47: = | J47: =+I42 -> 0
A48: Andet: | I48: =
A50: Godtgørelse i alt | I50: = | J50: =SUM(J44:J48) -> 0
A53: Udarbejdet af: | E53: Dato | H53: Navn (Underskrift hvis ikke elektronisk)
A55: Godkendt af: | E55: Dato | H55: Navn (Underskrift hvis ikke elektronisk)
